bitfinex-derivatives/quotes_ETHF0:USTF0_20251117
["timestamp","ask_amount","ask_price","bid_price","bid_amount"]
[1763373538683,0.2483,3194.6,3194.5,0.3894]
[1763373538884,0.2483,3194.6,3194.5,3.5972]
[1763373539082,0.50747,3194.9,3194.5,3.5972]
[1763373539487,0.75579,3194.8,3194.7,0.2477]
[1763373540187,0.2483,3194.8,3194.7,0.2477]
[1763373540492,1.50410066,3194.9,3194.8,0.2477]
[1763373541389,0.74833066,3194.9,3194.8,0.2477]
[1763373541889,0.75574,3195.1,3195.0,0.2477]
[1763373542282,1.5041048,3195.1,3195.0,0.2477]
[1763373544990,1.12563147,3195.7,3195.6,0.2477]
[1763373545193,0.75565,3195.7,3195.6,0.2477]
[1763373548891,0.90098,3195.5,3195.4,3.2078]
[1763373549888,0.3936,3195.5,3195.4,3.2078]
[1763373550092,0.2483,3195.5,3195.4,3.4555]
[1763373550593,0.75568,3195.5,3195.4,3.4555]
[1763373551487,0.2483,3195.1,3195.0,3.4555]
[1763373551688,0.2483,3195.1,3195.0,3.6011]
[1763373551888,0.5074,3195.4,3195.0,3.6011]
[1763373552394,0.75571,3195.3,3195.2,0.2477]
[1763373553901,0.2483,3195.3,3195.2,0.2477]
[1763373554195,0.3936,3195.5,3195.4,0.2477]
[1763373554399,0.2483,3195.5,3195.4,0.2477]
[1763373555299,0.75568,3195.5,3195.4,0.2477]
[1763373555492,0.90098,3195.5,3195.4,0.2477]
[1763373555797,0.90098,3195.5,3195.0,3.3534]
[1763373555999,0.5074,3195.4,3195.0,3.3534]
[1763373556694,0.65268,3195.5,3195.0,3.3534]
[1763373557501,0.73428,3195.5,3195.4,0.2477]
[1763373558899,0.2269,3195.5,3195.4,0.2477]
[1763373560301,0.75187,3195.6,3195.5,0.2257]
[1763373562107,0.2445,3195.6,3195.5,0.2257]
[1763373562497,0.75186,3195.6,3195.5,0.2257]
[1763373567007,0.65319,3195.5,3195.0,3.3534]
[1763373569101,0.89769,3195.5,3195.4,0.2257]
[1763373572702,0.75189,3195.4,3195.3,0.2257]
[1763373578310,1.49690594,3195.4,3195.3,0.2257]
[1763373584413,0.98951594,3195.4,3195.3,0.2257]
[1763373585218,0.2445,3195.4,3195.3,0.2257]
[1763373588322,0.75189,3195.4,3195.3,0.2257]
[1763373589223,0.2445,3195.4,3195.3,0.2257]
[1763373591324,0.98978629,3195.4,3195.3,0.2257]
[1763373591518,0.50742,3195.3,3195.0,2.38332924]
[1763373591724,0.2479,3195.1,3195.0,0.2484]
[1763373592317,0.5074,3195.4,3195.0,0.3903]
[1763373592518,0.7553,3195.4,3195.3,0.2484]
[1763373592815,1.50059516,3195.4,3195.3,0.2484]
[1763373594424,0.99319516,3195.4,3195.3,0.2484]
[1763373595120,1.50058516,3195.4,3195.3,0.2484]
[1763373597230,0.99319516,3195.4,3195.3,0.2484]
[1763373597728,1.50058516,3195.4,3195.3,0.2484]
[1763373599332,0.99319516,3195.4,3195.3,0.2484]
[1763373600926,0.1371,3195.0,3194.9,3.2078]
[1763373601127,0.89246,3195.0,3194.9,3.2078]
[1763373601330,0.385,3194.5,3194.4,0.00707734]
[1763373602426,3.5928,3195.0,3194.9,0.2484]
[1763373603130,4.10026,3195.0,3194.5,3.3497]
[1763373603725,3.5928,3195.0,3194.5,3.3497]
[1763373603927,4.10026,3195.0,3194.5,3.3497]
[1763373604230,3.5928,3195.0,3194.5,3.3497]
[1763373605132,3.4557,3195.0,3194.9,0.2484]
[1763373605521,4.47934106,3196.0,3195.4,0.2484]
[1763373605727,0.2479,3195.6,3195.5,0.3903]
[1763373605927,3.35370959,3196.0,3195.5,0.1419]
[1763373605928,3.60160959,3196.0,3195.5,0.1419]
[1763373606224,3.35370959,3196.0,3195.5,0.1419]
[1763373606424,0.99149308,3195.9,3195.8,0.2484]
[1763373606624,0.2479,3195.9,3195.8,0.2484]
[1763373607027,0.2479,3195.9,3195.5,0.1419]
[1763373608333,0.2479,3195.6,3195.5,0.2484]
[1763373608529,0.385,3195.5,3195.4,3.4562]
[1763373608730,0.2479,3195.5,3195.4,3.4562]
[1763373613932,0.89620959,3196.0,3195.5,0.1419]
[1763373614738,0.38890959,3196.0,3195.5,0.1419]
[1763373614937,0.89621959,3196.0,3195.5,0.1419]
[1763373615441,0.50731,3195.9,3195.5,0.1419]
[1763373616130,0.75521,3195.9,3195.8,0.2484]
[1763373620139,0.00390959,3196.0,3195.9,0.2486]
[1763373620339,0.00390959,3196.0,3195.9,3.4564]
[1763373620540,0.39610959,3196.0,3195.9,3.2078]
[1763373620740,0.39610959,3196.0,3195.9,3.4564]
[1763373620741,0.24850959,3196.0,3195.9,3.4564]
[1763373621641,0.00390959,3196.0,3195.9,3.4564]
[1763373626944,3.95961,3196.6,3196.5,0.2486]
[1763373627246,0.65482,3196.5,3196.0,0.1432]
[1763373627432,0.2446,3196.1,3196.0,0.3918]
[1763373627954,0.24806183,3196.1,3196.0,0.3918]
[1763373629146,0.00346183,3196.1,3196.0,0.3918]
[1763373633752,0.24806183,3196.1,3196.0,0.2486]
[1763373634955,0.00346183,3196.1,3196.0,0.3918]
[1763373638064,0.24806183,3196.1,3196.0,0.3918]
[1763373638956,0.00346183,3196.1,3196.0,0.3918]
[1763373650752,0.00346183,3196.1,3196.0,3.5996]
[1763373654657,0.74066106,3196.6,3196.5,0.3854]
[1763373654862,0.73483,3197.1,3197.0,0.2391]
[1763373655062,1.47558448,3197.1,3197.0,0.2391]
[1763373655762,1.47858655,3197.1,3197.0,0.24234373]
[1763373656470,0.73783207,3197.1,3197.0,0.24234373]
[1763373656769,1.47706442,3197.1,3197.0,0.00324373]
[1763373656973,0.73783207,3197.1,3197.0,0.00324373]
[1763373659977,1.4765309,3197.1,3197.0,0.00324373]
[1763373666591,0.9694009,3197.1,3197.0,0.24234373]
[1763373666791,0.23070207,3197.1,3197.0,0.00324373]
[1763373668392,0.73782207,3197.1,3197.0,0.00324373]
[1763373670095,0.23070207,3197.1,3197.0,0.00324373]
[1763373670387,0.23070207,3197.1,3197.0,0.24234373]
[1763373670887,0.23070207,3197.1,3197.0,0.00324373]
[1763373672194,0.23070207,3197.1,3197.0,0.24234373]
[1763373672692,0.73782207,3197.1,3197.0,0.00324373]
[1763373673088,0.23070207,3197.1,3197.0,0.00324373]
[1763373677803,0.73782207,3197.1,3197.0,0.00324373]
[1763373680404,1.47466775,3197.1,3197.0,0.00324373]
[1763373682704,0.73782207,3197.1,3197.0,0.00324373]
[1763373683001,1.47489433,3197.1,3197.0,0.00324373]
[1763373691111,0.2417,3196.3,3196.2,0.2383]
[1763373691306,0.2417,3196.2,3196.1,3.2078]
[1763373692102,0.2417,3196.2,3196.1,3.2110168]
[1763373695916,0.74897,3196.2,3196.1,3.2110168]
[1763373696320,0.2417,3196.2,3196.1,3.2110168]
[1763373699330,0.2417,3196.2,3196.1,3.4493168]
[1763373701217,0.74897,3196.2,3196.1,3.4493168]
[1763373701809,0.74897,3196.2,3196.1,0.2415168]
[1763373702115,0.74897,3196.2,3196.1,0.0032168]
[1763373704914,3.4495,3196.9,3196.8,0.2383]
[1763373705214,0.50718,3196.8,3196.5,0.1366]
[1763373705513,0.2255,3196.6,3196.5,0.2432]
[1763373705712,0.65602,3196.5,3196.1,0.0032168]
[1763373706020,0.2255,3196.2,3196.1,0.2464168]
[1763373708023,0.73277,3196.2,3196.1,0.0032168]
[1763373709514,0.2255,3196.2,3196.1,0.2464168]
[1763373709720,0.73277,3196.2,3196.1,0.2464168]
[1763373710522,0.2255,3196.2,3196.1,0.2464168]
[1763373710724,0.73277,3196.2,3196.1,0.2464168]
[1763373713120,0.2255,3196.2,3196.1,0.2464168]
[1763373713322,0.2417,3196.5,3196.4,0.2472]
[1763373714318,0.74892,3196.5,3196.4,0.2472]
[1763373715523,0.2417,3196.5,3196.4,0.2472]
[1763373716526,0.74887,3196.8,3196.7,0.2472]
[1763373716826,1.48559654,3196.8,3196.7,0.2472]
[1763373717224,0.2417,3196.6,3196.5,0.3924]
[1763373718213,0.2417,3196.6,3196.5,0.2472]
[1763373718413,0.2417,3196.6,3196.5,0.3924]
[1763373720729,0.7489,3196.6,3196.5,0.2472]
[1763373721029,0.2417,3196.2,3196.1,0.2504168]
[1763373721231,0.74897,3196.2,3196.1,0.0032168]
[1763373722831,0.2417,3196.2,3196.1,0.0032168]
[1763373723730,0.74897,3196.2,3196.1,0.0032168]
[1763373724931,0.2417,3196.2,3196.1,0.2504168]
[1763373725132,0.74897,3196.2,3196.1,0.2504168]
[1763373727734,0.2417,3196.2,3196.1,0.2504168]
[1763373728133,0.74897,3196.2,3196.1,0.2504168]
[1763373728835,0.2417,3196.2,3196.1,0.2504168]
[1763373730433,0.50724,3196.4,3196.1,0.2504168]
[1763373730729,0.74894,3196.4,3196.3,0.2472]
[1763373730927,0.7489,3196.7,3196.6,0.2472]
[1763373731325,0.50721,3196.6,3196.1,0.0032168]
[1763373731527,0.88762,3196.5,3196.4,0.2472]
[1763373731725,0.3804,3196.5,3196.4,0.2472]
[1763373731925,0.88762,3196.5,3196.4,0.2472]
[1763373733337,0.3804,3196.5,3196.4,0.2472]
[1763373733726,0.88762,3196.5,3196.4,0.2472]
[1763373734235,0.3804,3196.5,3196.4,0.2472]
[1763373736232,3.71497,3196.8,3196.5,0.1422]
[1763373736540,3.4428,3196.8,3196.7,0.2342]
[1763373737042,3.94997,3196.8,3196.7,0.2342]
[1763373738141,0.2291,3197.0,3196.9,0.2478]
[1763373738438,0.00300207,3197.1,3197.0,0.3943]
[1763373739237,0.23210207,3197.1,3197.0,0.3943]
[1763373740244,0.23210207,3197.1,3197.0,0.2478]
[1763373746545,0.23210207,3197.1,3197.0,0.3934]
[1763373747453,0.23210207,3197.1,3197.0,0.2478]
[1763373748953,0.23210207,3197.1,3197.0,0.3934]
[1763373751059,0.00300207,3197.1,3197.0,0.3934]
[1763373753352,3.2078,3197.9,3197.8,0.2376]
[1763373753353,3.9507,3197.9,3197.8,0.2376]
[1763373754458,3.95354415,3197.9,3197.8,0.2376]
[1763373755258,3.44654415,3197.9,3197.8,0.2376]
[1763373755653,3.95354415,3197.9,3197.8,0.2376]
[1763373756852,3.44654415,3197.9,3197.8,0.2376]
[1763373757460,0.23874415,3197.9,3197.8,0.2376]
[1763373760059,0.00284415,3197.9,3197.8,0.2376]
[1763373760862,0.23874415,3197.9,3197.8,0.2376]
[1763373761559,0.00284415,3197.9,3197.8,0.2376]
[1763373763363,0.2705,3198.7,3198.6,0.2376]
[1763373763569,0.77737,3198.7,3198.6,0.2376]
[1763373764562,0.78086816,3198.7,3198.6,0.24091587]
[1763373765167,0.27399816,3198.7,3198.6,0.24091587]
[1763373765765,0.03809816,3198.7,3198.6,0.24091587]
[1763373768558,0.03809816,3198.7,3198.6,3.44871587]
[1763373768764,0.03809816,3198.7,3198.6,3.69932644]
[1763373770767,0.2403,3199.8,3199.7,0.2319]
[1763373770970,0.2403,3199.6,3199.5,0.2319]
[1763373771273,0.88334,3199.5,3199.4,3.44438889]
[1763373771569,0.3766,3199.5,3199.4,3.44438889]
[1763373771766,0.88731201,3199.5,3199.4,3.44438889]
[1763373772670,0.38057201,3199.5,3199.4,3.44438889]
[1763373773073,0.88731201,3199.5,3199.4,3.44438889]
[1763373774774,0.88731201,3199.5,3199.4,3.21248889]
[1763373774975,0.88731201,3199.5,3199.4,0.00468889]
[1763373780281,0.38057201,3199.5,3199.4,0.00468889]
[1763373780977,0.88731201,3199.5,3199.4,0.00468889]
[1763373781777,0.38057201,3199.5,3199.4,0.23658889]
[1763373781973,0.24427201,3199.5,3199.4,0.23658889]
[1763373783074,0.38057201,3199.5,3199.4,0.00468889]
[1763373783470,0.38057201,3199.5,3199.4,0.23658889]
[1763373784274,0.00397201,3199.5,3199.4,0.23658889]
[1763373784673,0.00397201,3199.5,3199.4,3.44438889]
[1763373787078,3.9547,3200.4,3200.3,0.2319]
[1763373787473,3.4481,3200.4,3200.3,0.2319]
[1763373787673,3.9547,3200.4,3200.3,0.2319]
[1763373788073,3.95722259,3200.4,3200.3,0.2319]
[1763373788984,0.50662,3200.3,3200.0,0.1418]
[1763373789483,3.21032259,3200.4,3200.0,0.1418]
[1763373789484,3.71692259,3200.4,3200.0,0.1418]
[1763373790384,0.2403,3200.1,3200.0,0.3737]
[1763373790984,0.00252259,3200.4,3200.3,0.2319]
[1763373791283,0.24282259,3200.4,3200.3,0.2319]
[1763373792179,0.00252259,3200.4,3200.3,0.2319]
[1763373793182,0.24282259,3200.4,3200.3,0.2319]
[1763373795291,0.24282259,3200.4,3200.0,0.1418]
[1763373795584,0.74704,3199.6,3199.4,3.21248889]
[1763373795788,0.88334,3199.5,3199.4,3.21248889]
[1763373796087,0.88334,3199.5,3199.4,0.00468889]
[1763373796791,0.3766,3199.5,3199.4,0.00468889]
[1763373797383,0.88334,3199.5,3199.4,0.00468889]
[1763373799590,0.3766,3199.5,3199.4,0.00468889]
[1763373800492,0.88334,3199.5,3199.4,0.00468889]
[1763373801488,0.74497,3198.7,3198.6,0.00331587]
[1763373801785,0.74505,3198.2,3197.4,1.67686157]
[1763373801984,3.93299589,3198.7,3197.0,2.37918702]
[1763373801985,0.50704,3197.6,3197.5,0.1402]
[1763373802491,3.71481,3197.8,3197.5,0.1402]
[1763373802691,0.50703,3197.7,3197.5,0.14330725]
[1763373802881,0.50704,3197.6,3197.5,0.14330725]
[1763373804799,3.7186331,3197.8,3197.5,0.14330725]
[1763373804989,0.50704,3197.7,3197.5,0.14330725]
[1763373805188,0.50704,3197.6,3197.5,0.14330725]
[1763373806797,0.50709,3197.3,3197.2,0.00468889]
[1763373807008,3.71489,3197.3,3197.2,0.00468889]
[1763373807295,3.2078,3197.3,3196.4,3.2078]
[1763373807495,3.2078,3196.9,3196.4,3.2078]
[1763373807690,3.2078,3196.9,3196.5,0.14410463]
[1763373808692,3.2078,3196.9,3196.8,0.2299]
[1763373810695,3.2078,3197.3,3197.2,0.2299]
[1763373811097,3.2078,3197.3,3197.0,0.1402]
[1763373812197,0.50718,3196.8,3196.5,0.14410463]
[1763373812396,0.50717,3196.8,3196.5,0.14410463]
[1763373813098,3.2078,3196.9,3196.5,0.14410463]
[1763373813694,3.2078,3196.9,3196.8,0.2299]
[1763373814101,3.2078,3197.3,3197.2,0.2299]
[1763373816906,3.2078,3197.7,3197.6,0.2299]
[1763373817498,3.2078,3197.7,3197.5,0.1402]
[1763373817900,3.2078,3197.7,3197.6,0.2299]
[1763373818400,3.2078,3197.7,3197.5,0.1402]
[1763373818604,3.2078,3197.7,3197.6,0.2299]
[1763373821908,3.2078,3197.7,3197.5,0.1402]
[1763373823308,3.2078,3197.7,3197.6,0.2299]
[1763373823704,3.2078,3197.7,3197.5,0.1402]
[1763373825112,0.0038131,3197.8,3197.5,0.1402]
[1763373825612,0.0038131,3197.8,3197.7,0.2299]
[1763373827912,3.71458,3199.3,3199.0,0.1402]
[1763373828111,3.2078,3199.3,3199.0,0.1402]
[1763373828704,3.2078,3199.3,3199.2,0.2299]
[1763373828907,3.21059178,3199.3,3199.2,0.2299]
[1763373831013,0.00279178,3199.3,3199.2,0.2299]
[1763373834209,0.00468889,3199.5,3199.4,0.2302]
[1763373834409,0.00468889,3199.5,3199.4,3.438]
[1763373835321,0.00750263,3199.5,3199.4,3.438]
[1763373842224,0.00750263,3199.5,3199.4,0.2302]
[1763373842815,0.00750263,3199.5,3199.0,3.3503562]
[1763373844626,0.00750263,3199.5,3199.4,0.2302]
[1763373846325,0.00750263,3199.5,3199.0,3.3503562]
[1763373846726,0.00750263,3199.5,3199.4,0.2302]
[1763373848328,0.00750263,3199.5,3199.0,3.3503562]
[1763373848730,0.00750263,3199.5,3199.4,0.2302]
[1763373853330,0.00750263,3199.5,3199.0,3.3503562]
[1763373856437,0.00750263,3199.5,3199.4,0.2302]
[1763373861052,3.2078,3200.2,3200.1,0.2287]
[1763373861349,3.93723968,3200.2,3200.1,0.2287]
[1763373861949,3.94099551,3200.2,3200.1,0.2287]
[1763373862450,3.21155583,3200.2,3200.1,0.2287]
[1763373874655,3.21155583,3200.2,3200.0,0.1385]
[1763373876659,0.50668,3199.9,3199.5,0.1385]
[1763373876854,0.50667,3200.0,3199.5,0.1385]
[1763373877057,3.21155583,3200.2,3199.5,0.1385]
[1763373877361,0.50685,3198.8,3198.7,0.72737223]
[1763373877564,0.50687,3198.7,3198.0,0.1461]
[1763373877766,3.2078,3198.3,3198.0,0.1461]
[1763373878466,3.2078,3198.3,3198.0,0.14900232]
[1763373882061,0.50695,3198.2,3198.0,0.14900232]
[1763373883770,3.2078,3198.3,3198.0,0.14900232]
[1763373884264,3.71473,3198.3,3198.0,0.14900232]
[1763373884764,3.2078,3198.3,3198.0,0.14900232]
[1763373889361,3.2078,3198.3,3198.2,0.2428]
[1763373895672,3.2078,3198.3,3198.0,0.14900232]
[1763373898673,3.2078,3198.3,3198.2,0.24]
[1763373900678,3.2078,3198.3,3198.0,0.14900232]
[1763373903379,3.71473,3198.3,3198.0,0.14900232]
[1763373903585,3.2078,3198.3,3198.0,0.14900232]
[1763373903786,3.71474,3198.3,3198.0,0.14900232]
[1763373903985,3.2078,3198.3,3198.0,0.14900232]
[1763373904186,0.50696,3198.1,3198.0,2.32e-06]
[1763373904389,0.50699,3198.0,3197.8,0.00468889]
[1763373904582,3.2078,3197.9,3197.8,0.00468889]
[1763373905489,3.21182254,3197.9,3197.8,0.00845485]
[1763373906096,0.00402254,3197.9,3197.8,0.24425485]
[1763373906294,2.254e-05,3197.9,3197.8,0.24425485]
[1763373906593,3.2078,3198.3,3198.2,0.2358]
[1763373907495,3.21072327,3198.3,3198.2,0.2358]
[1763373909408,3.2078,3199.1,3199.0,0.3761]
[1763373910397,3.21116545,3199.1,3199.0,0.3761]
[1763373910797,3.21116545,3199.1,3199.0,0.1403]
[1763373911900,3.71797545,3199.1,3199.0,0.1403]
[1763373912293,3.21116545,3199.1,3199.0,0.1403]
[1763373912694,3.21116545,3199.1,3199.0,0.3761]
[1763373913606,3.21116545,3199.1,3199.0,0.1403]
[1763373914495,3.21116545,3199.1,3199.0,0.3761]
[1763373915197,3.21116545,3199.1,3199.0,0.1403]
[1763373916503,3.21116545,3199.1,3199.0,0.3761]
[1763373921104,0.00336545,3199.1,3199.0,0.3761]
[1763373944231,3.2078,3199.2,3199.1,0.2258]
[1763373945226,3.21060379,3199.2,3199.1,0.2258]
[1763373950138,3.21060379,3199.2,3199.0,0.1403]
[1763373953941,3.21060379,3199.2,3199.1,0.2309]
[1763373957151,0.00280379,3199.2,3199.1,0.2309]
[1763373973963,3.21060379,3199.2,3199.1,0.2302]
[1763373974760,3.21060379,3199.2,3199.0,0.1403]
[1763373978165,0.76396827,3199.1,3199.0,0.1403]
[1763373980165,3.21060379,3199.2,3199.0,0.1403]
[1763373980774,0.50682,3199.0,3198.5,0.1403]
[1763373981071,3.2078,3198.6,3198.5,0.1403]
[1763373981767,3.2078,3198.6,3198.0,0.1403]
[1763373981768,0.50695,3198.2,3198.0,0.1403]
[1763373981974,3.71476,3198.1,3198.0,0.1403]
[1763373982165,4.47684994,3198.1,3198.0,0.1403]
[1763373982874,3.96988994,3198.1,3198.0,0.1403]
[1763373983270,3.71476,3198.1,3198.0,0.1403]
[1763373983467,3.2078,3198.1,3198.0,0.1403]
[1763373984775,3.71476,3198.1,3198.0,0.1403]
[1763373986077,3.2078,3198.1,3198.0,0.1403]
[1763373986777,3.2078,3198.1,3198.0,0.3856]
[1763373989383,3.2078,3198.5,3198.4,0.2453]
[1763373995073,3.2078,3198.9,3198.8,0.2259]
[1763373995279,0.00280379,3199.2,3199.1,0.2259]
[1763374003378,0.00280379,3199.2,3199.0,0.143]
[1763374003579,0.50959379,3199.2,3199.0,0.143]
[1763374003972,0.50681,3199.1,3199.0,0.143]
[1763374004575,0.50959379,3199.2,3199.0,0.143]
[1763374004782,0.00280379,3199.2,3199.0,0.143]
[1763374005182,0.00280379,3199.2,3199.1,0.2259]
[1763374008289,0.00280379,3199.2,3199.0,0.143]
[1763374009191,0.00280379,3199.2,3199.1,0.2259]
[1763374009696,0.00280379,3199.2,3199.0,0.143]
[1763374012892,0.00280379,3199.2,3199.1,0.2264]
[1763374014287,0.50959379,3199.2,3199.0,0.143]
[1763374014693,0.00280379,3199.2,3199.0,0.143]
[1763374014996,0.50959379,3199.2,3199.0,0.143]
[1763374015295,0.50681,3199.1,3199.0,0.143]
[1763374015795,0.50959379,3199.2,3199.0,0.143]
[1763374016684,0.00280379,3199.2,3199.0,0.143]
[1763374017091,3.2078,3199.1,3199.0,0.3694]
[1763374022196,0.00280379,3199.2,3199.1,0.2264]
[1763374025902,0.00280379,3199.2,3199.0,0.143]
[1763374025903,0.50681,3199.1,3199.0,0.143]
[1763374026107,4.47705326,3199.1,3199.0,0.143]
[1763374026710,0.50688,3198.6,3198.5,0.143]
[1763374026901,3.71468,3198.6,3198.5,0.143]
[1763374029000,3.2078,3198.6,3198.5,0.143]
[1763374029205,3.2078,3198.6,3198.5,0.3694]
[1763374050712,3.2078,3198.6,3198.5,0.143]
[1763374052015,3.2078,3198.6,3198.0,0.1403]
[1763374052204,3.2078,3198.2,3198.0,0.1403]
[1763374052410,1.27513206,3198.1,3198.0,0.1403]
[1763374053716,0.76817206,3198.1,3198.0,0.1403]
[1763374055315,1.27513206,3198.1,3198.0,0.1403]
[1763374055815,0.76817206,3198.1,3198.0,0.1403]
[1763374056117,0.76817206,3198.1,3198.0,0.3763]
[1763374056816,3.2078,3198.2,3198.1,0.236]
[1763374063619,3.2078,3198.3,3198.2,0.236]
[1763374066828,0.50688,3198.7,3198.2,0.236]
[1763374067029,3.2078,3198.3,3198.2,0.236]
[1763374071428,3.2078,3198.3,3198.0,0.1403]
[1763374074534,3.2078,3198.3,3198.2,0.2369]
[1763374080332,3.2078,3198.7,3198.6,0.2369]
[1763374081038,3.2078,3198.7,3198.5,0.135]
[1763374081331,3.71467,3198.7,3198.5,0.135]
[1763374081529,3.2078,3198.7,3198.5,0.135]
[1763374082823,3.2078,3198.7,3198.6,0.2369]
[1763374087835,3.21060379,3199.2,3199.1,0.2369]
[1763374088038,3.21060379,3199.2,3199.0,0.135]
[1763374091240,0.00280379,3199.2,3199.1,0.2369]
[1763374100055,3.2078,3199.6,3199.5,0.3892]
[1763374100952,1.65084694,3201.0,3199.9,0.2447]
[1763374100953,3.2078,3200.0,3199.9,0.2447]
[1763374101148,0.00229295,3200.0,3199.9,0.2447]
[1763374103851,0.00229295,3200.0,3199.7,3.2078]
[1763374103852,3.2078,3200.4,3200.3,0.2447]
[1763374104855,3.21130276,3200.4,3200.3,0.24700743]
[1763374105254,0.00350276,3200.4,3200.3,0.24700743]
[1763374108655,3.2078,3201.2,3200.3,0.24700743]
[1763374108855,3.2078,3201.2,3201.1,0.2447]
[1763374109650,3.2101983,3201.2,3201.1,0.2447]
[1763374115858,3.2101983,3201.2,3201.0,0.1445]
[1763374117853,3.2101983,3201.2,3201.1,0.2447]
[1763374118465,3.2101983,3201.2,3201.0,0.1445]
[1763374118669,3.2101983,3201.2,3201.1,0.2447]
[1763374122666,1.10049328,3202.6,3202.5,0.3892]
[1763374122869,4.30829328,3202.8,3202.5,0.3892]
[1763374123070,3.2078,3202.8,3202.5,0.3892]
[1763374123766,3.21000649,3202.8,3202.5,0.3892]
[1763374124157,3.21000649,3202.8,3202.7,0.2447]
[1763374124354,3.21000649,3202.8,3202.7,0.00329995]
[1763374126171,3.21000649,3202.8,3202.7,0.24799995]
[1763374126864,3.21000649,3202.8,3202.7,0.00329995]
[1763374134769,3.21000649,3202.8,3202.2,0.00468889]
[1763374135070,3.2078,3202.4,3201.2,3.2078]
[1763374135374,3.2078,3201.8,3201.2,3.2078]
[1763374135766,3.2078,3201.8,3201.5,0.14727269]
[1763374141080,3.2078,3201.8,3201.7,0.2287]
[1763374141380,3.2078,3201.8,3201.5,0.14727269]
[1763374141769,3.2078,3201.8,3201.7,0.2287]
[1763374142570,0.00468889,3202.0,3201.9,0.2287]
[1763374143968,3.2078,3202.7,3202.6,0.2287]
[1763374145173,0.00220649,3202.8,3202.7,0.2287]
[1763374155874,0.0346,3203.7,3203.6,0.2287]
[1763374156878,0.03840874,3203.7,3203.6,0.2287]
[1763374164282,1.65084694,3205.3,3203.6,0.2287]
[1763374164283,0.15664694,3205.3,3205.2,0.2343]
[1763374164474,0.2479,3205.3,3205.2,3.4421]
[1763374164780,0.2479,3205.3,3205.2,0.2343]
[1763374164973,0.2479,3205.2,3205.1,0.24974887]
[1763374165181,0.25182556,3205.2,3205.1,0.25347211]
[1763374165377,0.25182556,3205.2,3205.1,0.48777211]
[1763374165773,0.25182556,3205.2,3205.1,0.23802324]
[1763374165980,0.25182556,3205.2,3205.1,0.00372324]
[1763374166173,0.25182556,3205.2,3204.9,0.00468114]
[1763374166174,0.2479,3204.4,3204.3,3.2078]
[1763374166375,0.3873,3204.0,3203.9,3.4421]
[1763374168485,0.2479,3203.7,3203.6,0.00468114]
[1763374168677,0.1394,3203.0,3202.7,3.2078]
[1763374168883,0.2479,3202.8,3202.7,3.21107126]
[1763374169080,0.25058306,3202.8,3202.7,3.21107126]
[1763374169485,0.25058306,3202.8,3202.7,3.44537126]
[1763374169486,0.00268306,3202.8,3202.7,3.44537126]
[1763374169878,0.25058306,3202.8,3202.7,3.44537126]
[1763374170085,0.25058306,3202.8,3202.7,1.71687126]
[1763374170385,3.2078,3202.1,3200.6,2.23527354]
[1763374170683,20.84494198,3202.8,3200.5,0.1361]
[1763374170684,3.2078,3200.7,3200.5,0.1361]
[1763374171086,3.2078,3200.7,3200.5,8.37502579]
[1763374171386,3.2078,3200.7,3200.6,8.47322579]
[1763374173988,2.4607,3200.7,3200.6,8.47322579]
[1763374174283,0.00268306,3202.8,3201.3,0.2343]
[1763374174284,3.2078,3201.4,3201.3,0.2343]
[1763374174481,0.133,3201.1,3201.0,0.1361]
[1763374174680,0.133,3201.1,3200.6,3.2078]
[1763374175386,0.00468114,3201.2,3201.1,0.2343]
[1763374175783,0.133,3200.6,3200.5,0.00273786]
[1763374175989,0.50661,3200.3,3199.5,0.1361]
[1763374176289,0.133,3199.7,3199.5,5.16254465]
[1763374177389,0.133,3199.6,3199.5,0.00361299]
[1763374177698,0.00370422,3199.7,3199.2,0.1361]
[1763374177885,2.75382225,3199.9,3199.8,0.3704]
[1763374178190,2.88322225,3199.9,3199.3,5.02644465]
[1763374178491,2.88791077,3199.9,3199.3,5.03113317]
[1763374178992,2.89119692,3199.9,3199.3,5.03377572]
[1763374181089,0.1294,3199.5,3199.4,5.02644465]
[1763374181292,0.1294,3199.5,3199.3,5.03377572]
[1763374181491,0.1294,3199.4,3199.3,0.00733107]
[1763374181690,0.1221,3198.8,3198.7,0.03126319]
[1763374182093,0.1221,3198.8,3198.7,5.05770784]
[1763374182893,0.1221,3198.8,3198.7,0.03373736]
[1763374185801,3.2078,3198.9,3198.7,5.06018201]
[1763374186792,3.2078,3198.9,3198.8,5.26074465]
[1763374186994,3.2078,3199.3,3199.0,0.1361]
[1763374187395,3.2078,3199.3,3199.1,5.02644465]
[1763374188304,3.2078,3199.3,3199.2,0.2343]
[1763374188504,3.4398,3199.3,3199.2,5.26074465]
[1763374188700,3.4398,3199.3,3199.2,5.02644465]
[1763374193209,3.2078,3199.3,3199.2,5.27314465]
[1763374194508,3.4398,3199.3,3199.2,5.27314465]
[1763374196309,3.2078,3199.3,3199.2,5.27314465]
[1763374198511,3.2078,3199.5,3199.4,0.2467]
[1763374198913,0.50671,3199.8,3199.5,0.2376]
[1763374199111,0.77056302,3199.7,3199.5,0.2376]
[1763374199317,0.77056302,3199.7,3199.6,5.02644465]
[1763374199318,1.00256302,3199.7,3199.6,5.02644465]
[1763374200315,1.00256302,3199.7,3199.6,5.27314465]
[1763374200519,1.00256302,3199.7,3199.6,5.02644465]
[1763374200722,1.00256302,3199.7,3199.6,5.27314465]
[1763374201122,0.77056302,3199.7,3199.6,5.27314465]
[1763374201322,0.00797467,3199.9,3199.8,0.2467]
[1763374201520,0.78170926,3199.9,3199.8,0.2467]
[1763374201714,1.01370926,3199.9,3199.8,5.27314465]
[1763374202211,1.01370926,3199.9,3199.8,5.02644465]
[1763374203218,1.52038926,3199.9,3199.8,5.02644465]
[1763374204216,2.62039568,3199.9,3199.8,5.02644465]
[1763374204814,2.62039568,3199.9,3199.5,0.2376]
[1763374205015,0.77373459,3199.8,3199.7,0.2467]
[1763374206527,0.77373459,3199.8,3199.7,5.27314465]
[1763374207026,3.2078,3200.7,3200.3,0.2467]